bitfinex/quotes_ETHUSD_20241116
["timestamp","ask_amount","ask_price","bid_price","bid_amount"]
[1731717032362,0.1116,3075.0,3074.2,0.7734]
[1731717032363,3.25209,3075.0,3074.3,3.2527]
[1731717032664,3.25204,3075.0,3074.2,4.02624]
[1731717032865,3.25204,3075.0,3074.4,3.2526]
[1731717033041,0.325204,3074.9,3074.4,3.2526]
[1731717033235,3.25185,3075.2,3074.6,4.0258]
[1731717033467,3.25189,3075.2,3074.6,0.7734]
[1731717033652,3.25189,3075.2,3074.6,4.02578]
[1731717033965,0.325189,3075.1,3074.8,3.25224]
[1731717034175,3.25163,3075.4,3074.6,4.02578]
[1731717034476,3.25183,3075.2,3074.6,4.02578]
[1731717034773,0.325183,3075.1,3074.6,4.02578]
[1731717035275,3.363,3075.6,3074.6,0.7734]
[1731717035471,3.363,3075.6,3074.8,3.25215]
[1731717035829,3.363,3075.6,3074.6,0.7734]
[1731717035830,0.01,3076.1,3074.7,3.25234]
[1731717036025,3.25131,3075.7,3075.0,3.25194]
[1731717036250,3.25121,3075.8,3075.2,3.2518]
[1731717036466,0.650235,3075.7,3075.2,3.2518]
[1731717036667,3.25119,3075.8,3075.2,3.2518]
[1731717036846,3.25114,3075.9,3075.2,3.2518]
[1731717037252,3.25114,3075.9,3075.3,3.25171]
[1731717037459,3.40456115,3075.8,3075.3,3.25171]
[1731717037786,0.40456115,3075.8,3075.3,3.25171]
[1731717038803,0.40456115,3075.8,3075.4,3.25159]
[1731717039145,3.36232,3076.3,3075.6,3.25139]
[1731717039467,0.1116,3076.3,3074.9,0.7734]
[1731717039789,3.25191,3075.2,3074.6,0.7734]
[1731717040142,3.25191,3075.2,3074.6,4.02584]
[1731717040440,0.325191,3075.1,3074.6,4.02584]
[1731717041369,0.325191,3075.1,3074.7,3.25234]
[1731717042671,0.325191,3075.1,3074.6,4.02584]
[1731717042870,3.25142,3075.6,3075.1,0.7734]
[1731717043183,3.25118,3075.8,3075.1,4.02532]
[1731717043184,3.0,3075.7,3075.1,4.02532]
[1731717043386,0.625118,3075.6,3075.1,4.02532]
[1731717043695,0.625118,3075.6,3075.3,3.2517]
[1731717043989,3.251,3076.0,3075.3,3.2517]
[1731717044179,3.251,3076.0,3075.4,3.25158]
[1731717045084,3.25079,3076.2,3075.6,3.25139]
[1731717045290,0.336239,3076.1,3075.6,3.25139]
[1731717046682,0.336239,3076.1,3075.5,4.04033]
[1731717047754,0.336239,3076.1,3075.5,0.7889]
[1731717047755,3.25097,3076.0,3075.5,0.7889]
[1731717047968,0.336239,3076.1,3074.6,0.7889]
[1731717047969,3.25183,3075.2,3074.6,0.7889]
[1731717048169,3.25194,3075.1,3074.6,0.7889]
[1731717048411,3.25183,3075.2,3074.6,0.7889]
[1731717048412,3.902407,3075.0,3074.6,0.7889]
[1731717048580,0.650377,3075.0,3074.6,0.7889]
[1731717048905,6.50375,3075.2,3074.6,0.7889]
[1731717049107,3.25183,3075.2,3074.6,0.7889]
[1731717049897,3.25183,3075.2,3074.6,4.04127]
[1731717050506,3.25203,3075.1,3074.6,0.7889]
[1731717050862,3.588072,3075.3,3074.6,0.7889]
[1731717051062,0.336322,3075.3,3074.9,3.25211]
[1731717051306,0.336322,3075.3,3075.1,3.25191]
[1731717051460,0.1116,3076.0,3075.0,0.7889]
[1731717051678,3.5678349,3076.7,3075.6,0.7889]
[1731717051679,3.25069,3076.3,3075.6,0.7889]
[1731717051934,3.25087,3076.1,3075.6,0.7889]
[1731717053725,3.25129,3075.7,3075.2,0.7889]
[1731717053929,0.325129,3075.6,3075.2,4.04072]
[1731717054099,3.25112,3075.9,3075.2,4.04072]
[1731717054293,3.25112,3075.9,3075.3,3.25161]
[1731717054625,3.25112,3075.9,3075.2,4.04065]
[1731717054794,3.576302,3075.8,3075.2,4.04065]
[1731717054997,8.92,3076.9,3075.5,0.7889]
[1731717055201,3.25059,3076.4,3075.6,3.25139]
[1731717055388,0.325059,3076.3,3075.6,3.25139]
[1731717055723,0.325059,3076.3,3075.8,3.25111]
[1731717056831,0.325059,3076.3,3075.9,3.251]
[1731717057034,3.25047,3076.5,3075.9,3.251]
[1731717057526,3.25047,3076.5,3075.8,3.25111]
[1731717057685,6.36156,3077.0,3075.6,3.25137]
[1731717057686,3.0,3076.7,3075.6,3.25137]
[1731717057886,3.25013,3076.8,3075.7,3.25128]
[1731717057887,3.25075,3076.3,3075.7,3.25128]
[1731717058291,3.25075,3076.3,3075.5,0.7889]
[1731717058617,3.25093,3076.1,3075.5,0.7889]
[1731717058992,3.25093,3076.1,3075.5,4.0404]
[1731717059212,0.325093,3076.0,3075.7,3.25122]
[1731717059420,3.25087,3076.1,3075.5,0.7889]
[1731717060034,3.25087,3076.1,3075.5,4.04038]
[1731717060447,3.25071,3076.3,3075.5,0.7889]
[1731717060629,0.1116,3076.1,3075.5,0.7889]
[1731717060952,3.25173,3075.3,3074.7,3.25225]
[1731717061243,0.325173,3075.2,3074.7,3.25225]
[1731717061554,0.325173,3075.2,3074.5,0.7889]
[1731717061555,3.25194,3075.1,3074.5,0.7889]
[1731717061708,3.25194,3075.1,3074.5,4.04141]
[1731717061903,3.25192,3075.1,3074.5,0.7889]
[1731717062255,3.25192,3075.1,3073.8,0.01]
[1731717062256,3.25214,3074.9,3074.2,4.04177]
[1731717062550,3.25252,3074.6,3074.2,0.7889]
[1731717062722,3.25252,3074.6,3074.0,3.25305]
[1731717062723,3.25277,3074.3,3073.8,0.7889]
[1731717063048,0.1116,3074.4,3073.8,0.7889]
[1731717063215,0.1116,3074.4,3073.8,4.04219]
[1731717063419,3.25285,3074.3,3073.8,0.7889]
[1731717064848,3.25294,3074.2,3073.8,0.7889]
[1731717065054,3.25285,3074.3,3073.8,0.7889]
[1731717065205,0.336445,3074.2,3073.8,0.7889]
[1731717066141,3.25216,3074.9,3074.1,3.25291]
[1731717066331,12.1715,3075.5,3074.5,3.25248]
[1731717066332,3.25189,3075.2,3074.5,3.25248]
[1731717066531,4.7689,3075.3,3074.5,3.25248]
[1731717066943,3.25175,3075.3,3074.5,3.25248]
[1731717067370,3.25222,3074.9,3073.9,0.7999]
[1731717067550,3.25297,3074.2,3073.9,0.7999]
[1731717067747,6.50547,3074.4,3073.9,0.7999]
[1731717067976,3.25278,3074.3,3073.9,0.7999]
[1731717068981,3.25278,3074.3,3073.7,3.25338]
[1731717068982,3.2522,3074.9,3074.3,3.25274]
[1731717069187,3.25225,3074.8,3074.0,4.05295]
[1731717069399,3.25225,3074.8,3074.2,3.25278]
[1731717069678,3.96959695,3074.8,3074.0,4.05295]
[1731717069877,3.25254,3074.6,3074.0,4.05295]
[1731717070770,3.25227,3074.8,3074.0,4.05295]
[1731717070973,3.0,3075.1,3074.0,0.7999]
[1731717071175,3.0,3075.1,3074.6,0.7999]
[1731717071489,3.36339,3075.3,3074.6,4.05235]
[1731717071647,0.661504,3075.2,3074.6,4.05235]
[1731717071846,3.913394,3075.2,3074.6,0.7999]
[1731717072041,0.1116,3075.3,3074.6,0.7999]
[1731717072272,3.25192,3075.1,3074.6,0.7999]
[1731717072473,3.25214,3074.9,3074.6,0.7999]
[1731717072788,3.25192,3075.1,3074.6,0.7999]
[1731717072941,6.840292,3075.1,3074.6,0.7999]
[1731717073141,3.25204,3075.0,3074.6,0.7999]
[1731717073996,3.0,3075.8,3074.6,0.7999]
[1731717073997,3.36276,3075.9,3074.6,0.7999]
[1731717074218,0.02,3076.4,3075.2,0.7999]
[1731717074219,0.1116,3076.2,3075.2,0.7999]
[1731717074354,0.1116,3076.2,3075.5,3.25149]
[1731717074355,3.25091,3076.1,3075.5,3.25149]
[1731717074555,0.336251,3076.0,3075.5,3.25149]
[1731717074796,3.587241,3076.0,3075.5,3.25149]
[1731717075362,0.336251,3076.0,3075.6,0.7999]
[1731717075560,0.336251,3076.0,3075.6,4.05125]
[1731717075882,3.36208,3076.5,3075.8,3.25116]
[1731717076054,3.36208,3076.5,3075.9,3.25101]
[1731717076055,3.25048,3076.5,3075.9,3.25101]
[1731717076260,0.325048,3076.4,3076.0,3.25089]
[1731717076559,3.25027,3076.7,3076.0,3.25089]
[1731717076777,3.25027,3076.7,3076.1,0.7999]
[1731717077302,3.25035,3076.6,3076.1,0.7999]
[1731717077502,0.650062,3076.5,3076.1,4.05076]
[1731717077657,3.0,3076.8,3076.1,4.05076]
[1731717078185,6.25014,3076.8,3076.2,3.25073]
[1731717079605,0.1116,3077.1,3076.2,3.25076]
[1731717079606,3.24989,3077.1,3076.2,3.25076]
[1731717079767,0.325989,3077.0,3076.4,3.25051]
[1731717079972,0.1116,3077.4,3076.4,3.25051]
[1731717080172,0.1116,3077.4,3076.5,0.7999]
[1731717080406,3.24978,3077.2,3076.5,0.7999]
[1731717080810,3.24983,3077.1,3076.5,0.7999]
[1731717081109,3.24941,3077.5,3076.8,3.25003]
[1731717082139,3.24941,3077.5,3076.9,0.7999]
[1731717082422,3.24941,3077.5,3076.9,4.04989]
[1731717082628,3.24927,3077.7,3077.0,3.24983]
[1731717082831,0.324927,3077.6,3077.1,3.24977]
[1731717083124,0.324927,3077.6,3077.0,3.24983]
[1731717083688,0.324927,3077.6,3077.0,3.24989]
[1731717083889,3.249,3077.9,3077.2,3.24963]
[1731717084094,3.24909,3077.8,3077.2,3.24963]
[1731717084319,3.24921,3077.7,3077.1,0.7897]
[1731717084729,3.249,3077.9,3077.2,3.24969]
[1731717085027,3.57404,3077.8,3077.2,3.24969]
[1731717085189,3.24914,3077.8,3077.1,0.7897]
[1731717085617,3.24914,3077.8,3077.1,4.03949]
[1731717086122,3.24896,3077.9,3077.1,0.7897]
[1731717086293,3.24968,3077.3,3077.1,0.7897]
[1731717086492,3.24938,3077.6,3077.1,0.7897]
[1731717087226,3.24911,3077.8,3077.1,4.0395]
[1731717087396,0.324911,3077.7,3077.2,3.24969]
[1731717087982,3.574111,3077.7,3077.1,0.7897]
[1731717088580,3.574111,3077.7,3077.1,4.03943]
[1731717089238,0.324911,3077.7,3077.2,3.24968]
[1731717089441,3.249,3077.9,3077.2,3.24968]
[1731717089895,6.49807,3077.9,3077.2,3.24968]
[1731717090097,3.249,3077.9,3077.2,3.24968]
[1731717090292,3.249,3077.9,3077.1,0.7897]
[1731717090508,3.24925,3077.7,3077.1,4.03948]
[1731717090711,0.3249,3077.8,3077.4,3.2494]
[1731717093358,3.24845,3078.4,3077.8,3.24907]
[1731717093577,6.49699,3078.4,3077.7,4.03879]
[1731717093735,7.146658,3078.4,3077.7,4.03879]
[1731717093932,3.898118,3078.4,3077.8,3.24899]
[1731717094133,3.898118,3078.4,3077.7,4.03879]
[1731717094335,3.24845,3078.4,3077.7,4.03879]
[1731717095068,3.24854,3078.3,3077.7,4.03879]
[1731717096378,3.35955,3078.9,3077.8,0.8261]
[1731717096379,3.24837,3078.5,3077.8,0.8261]
[1731717096562,3.24837,3078.5,3077.9,3.2489]
[1731717096777,3.24792,3078.9,3078.3,4.07462]
[1731717097085,3.24792,3078.9,3078.4,3.24843]
[1731717097285,6.49549,3079.1,3078.4,3.24843]
[1731717097676,3.24771,3079.1,3078.4,3.24843]
[1731717097874,3.24771,3079.1,3078.5,3.24832]
[1731717098189,3.24771,3079.1,3078.5,3.655762]
[1731717099191,3.24759,3079.2,3078.7,0.8261]
[1731717099394,3.24752,3079.3,3078.7,0.8261]
[1731717099395,3.24777,3079.1,3078.7,0.8261]
[1731717101951,3.24793,3078.9,3078.7,0.8261]
[1731717102197,3.24801,3078.8,3078.7,0.8261]
[1731717102490,3.24793,3078.9,3078.4,0.8261]
[1731717102693,3.24808,3078.8,3078.4,0.8261]
[1731717102899,3.24788,3079.0,3078.4,0.8261]
[1731717103193,3.24788,3079.0,3078.4,4.07449]
[1731717103488,3.24791,3078.9,3078.4,0.8261]
[1731717103695,3.24776,3079.1,3078.5,0.407463]
[1731717103987,3.24784,3079.0,3078.5,3.655783]
[1731717104187,3.24784,3079.0,3078.6,0.33768558]
[1731717104612,3.24751,3079.3,3078.8,4.00521]
[1731717104765,3.24749,3079.3,3078.8,0.7572]
[1731717104965,3.24743,3079.4,3078.8,1.51632056]
[1731717105470,3.24746,3079.4,3078.8,1.51632056]
[1731717105669,3.24746,3079.4,3078.8,4.76433056]
[1731717105977,3.24752,3079.3,3078.8,1.51632056]
[1731717106176,3.24722,3079.6,3078.9,0.47644306]
[1731717106505,3.24739,3079.4,3078.8,4.76433056]
[1731717106712,3.24706,3079.7,3078.8,0.7572]
[1731717106869,3.24822,3078.7,3078.1,0.7572]
[1731717107071,3.24785,3079.0,3078.3,3.24845]
[1731717107268,3.24785,3079.0,3078.4,0.7572]
[1731717108121,3.24785,3079.0,3078.4,4.00557]
[1731717108463,3.24785,3079.0,3078.4,0.7572]
[1731717108682,3.24801,3078.8,3078.5,0.400565]
[1731717109018,3.24801,3078.8,3078.4,0.7572]
[1731717109313,3.24785,3079.0,3078.5,0.06495945]
[1731717109821,3.24785,3079.0,3078.4,4.00563]
[1731717109962,3.24785,3079.0,3078.5,0.06495843]
[1731717110376,3.24764,3079.2,3078.6,0.7572]
[1731717110599,3.24764,3079.2,3078.6,4.00541]
[1731717111102,6.49451,3079.6,3079.0,0.7572]
[1731717111314,3.24724,3079.6,3079.0,0.7572]
[1731717111999,6.49451,3079.6,3079.0,0.7572]
[1731717112365,3.24724,3079.6,3079.0,0.7572]
[1731717112566,3.24734,3079.5,3079.0,0.7572]
[1731717113303,0.324671,3080.0,3079.0,0.7572]
[1731717113304,3.24756,3079.3,3079.0,0.7572]
[1731717113510,3.24722,3079.6,3079.0,0.7572]
[1731717113667,3.6152071,3079.9,3079.0,0.7572]
[1731717113874,3.6152071,3079.9,3078.6,4.10252069]
[1731717113875,3.2477,3079.1,3078.7,0.7572]
[1731717114099,0.1116,3079.8,3078.7,0.7572]
[1731717114100,3.24706,3079.7,3078.7,0.7572]
[1731717114313,3.24801,3078.8,3078.7,0.7572]
[1731717115296,3.24835,3078.5,3078.3,0.7572]
[1731717115493,0.1116,3079.3,3078.3,0.7572]
[1731717115494,3.24814,3078.7,3078.3,0.7572]
[1731717115898,6.49635,3078.7,3078.3,0.7572]
[1731717116099,3.24824,3078.6,3078.3,0.7572]
[1731717116356,3.24835,3078.5,3078.3,0.7572]
[1731717116865,3.24864,3078.3,3078.0,0.7572]
[1731717117000,3.24939,3077.5,3077.4,0.7572]
[1731717117499,3.24939,3077.5,3076.5,4.26313448]
[1731717117500,3.2497,3077.2,3077.0,0.7572]
[1731717117802,3.2495,3077.4,3077.0,0.7572]
[1731717118032,3.24907,3077.8,3077.1,3.24974]
[1731717118207,3.24918,3077.7,3077.2,0.400694]
[1731717118402,3.24907,3077.8,3077.2,0.400694]
[1731717118903,3.24919,3077.7,3077.2,0.400694]
[1731717119105,3.24907,3077.8,3077.1,3.24974]
[1731717119106,3.24907,3077.8,3077.3,0.3650434]
[1731717119404,3.24919,3077.7,3077.3,0.3650434]
[1731717119602,3.24903,3077.9,3077.3,0.3650434]
[1731717119811,3.0,3078.7,3077.4,0.82218327]
[1731717119812,3.24882,3078.1,3077.4,0.82218327]
[1731717120140,3.24882,3078.1,3077.5,3.24937]
[1731717120347,3.24902,3077.9,3077.4,0.7572]
[1731717120505,3.24838,3078.5,3077.4,0.7572]
[1731717120506,3.24939,3077.5,3077.4,0.7572]
[1731717120701,3.24962,3077.3,3077.0,0.7572]
[1731717121416,3.24956,3077.4,3077.0,0.7572]
[1731717121606,3.24963,3077.3,3077.0,0.7572]
[1731717122520,3.24939,3077.5,3077.0,0.7572]
[1731717122702,3.24939,3077.5,3077.0,1.16680403]
[1731717122703,3.2495,3077.4,3077.0,1.16680403]
[1731717123699,3.36055,3078.0,3077.0,1.16680403]
[1731717123700,3.24928,3077.6,3077.0,1.16680403]
[1731717123906,6.49866,3077.6,3077.0,1.16680403]
[1731717124107,3.2494,3077.5,3077.1,0.4416744]
[1731717125319,0.1116,3078.4,3077.3,3.24952]
[1731717125636,3.24888,3078.0,3077.2,0.8002]
[1731717125804,3.24888,3078.0,3077.4,3.31447145]
[1731717126009,3.24888,3078.0,3077.5,0.33144715]
[1731717126315,3.24866,3078.2,3077.5,0.33144715]
[1731717126529,3.24886,3078.0,3077.5,0.33144715]
[1731717126940,3.24866,3078.2,3077.6,0.8002]
[1731717127142,3.36005,3078.4,3077.6,0.8002]
[1731717127143,3.36005,3078.4,3077.7,0.43809672]
[1731717127348,3.35976,3078.7,3077.8,0.06497491]
[1731717127510,3.24907,3077.8,3077.6,0.8002]
[1731717128022,3.35976,3078.7,3077.6,0.8002]
[1731717128023,3.24868,3078.2,3077.6,0.8002]
[1731717128242,3.24845,3078.4,3077.8,3.24906]
[1731717128416,3.24845,3078.4,3077.9,0.379906]
[1731717129759,3.24845,3078.4,3078.0,0.06497028]
[1731717130057,3.24827,3078.6,3078.0,4.11401028]
[1731717130218,3.24827,3078.6,3078.1,0.44939163]
[1731717130421,3.24835,3078.5,3078.1,0.44939163]
[1731717130675,3.24846,3078.4,3078.0,0.8002]
[1731717130854,3.24827,3078.6,3078.0,0.86517029]
[1731717131035,3.24803,3078.8,3078.0,0.86517029]
[1731717131351,3.24803,3078.8,3078.3,0.8002]
[1731717131553,3.24803,3078.8,3078.4,0.46983887]
[1731717131963,3.24784,3079.0,3078.4,3.71825887]
[1731717132119,3.24763,3079.2,3078.6,3.24822]
[1731717132453,3.24763,3079.2,3078.5,0.8002]
[1731717132756,3.24763,3079.2,3078.6,3.6935597]
[1731717133254,3.24741,3079.4,3078.8,0.8002]
[1731717133414,3.24741,3079.4,3078.9,3.2479]
[1731717134671,3.24718,3079.6,3079.0,0.8002]
[1731717134826,3.24718,3079.6,3079.0,4.43770944]
[1731717135173,3.2474,3079.4,3079.0,0.8002]
[1731717136373,3.247,3079.8,3079.1,0.06494694]
[1731717136571,3.247,3079.8,3079.0,4.048]
[1731717136572,3.247,3079.8,3079.2,0.96129469]
[1731717137122,3.24711,3079.7,3079.2,0.96129469]
[1731717137359,3.247,3079.8,3079.2,0.96129469]
[1731717137360,3.24719,3079.6,3079.2,0.96129469]
[1731717137568,3.24704,3079.8,3079.2,0.96129469]
[1731717137775,3.24704,3079.8,3079.3,0.42089847]
[1731717137926,3.24716,3079.7,3079.3,0.42089847]
[1731717138127,3.24704,3079.8,3079.3,0.42089847]
[1731717138976,3.24714,3079.7,3079.3,0.42089847]
[1731717139128,0.1116,3080.2,3079.2,0.41129469]
[1731717139330,0.1116,3080.2,3079.0,0.8002]
[1731717139331,0.00520671,3079.2,3079.0,0.8002]
[1731717140028,3.24745,3079.4,3079.0,0.8002]
[1731717140632,6.49493,3079.4,3079.0,0.8002]
[1731717141134,3.24711,3079.7,3079.1,4.04784]
[1731717141330,3.24711,3079.7,3079.2,0.404784]
[1731717142454,3.24689,3079.9,3079.3,3.24748]
[1731717142677,3.24698,3079.8,3079.3,3.24748]
[1731717143664,3.24698,3079.8,3079.2,0.404784]
[1731717143867,3.24707,3079.7,3079.3,0.7700234]
[1731717145342,3.24689,3079.9,3079.3,0.7700234]
[1731717145778,3.24702,3079.8,3079.4,0.7886]
[1731717148073,3.24685,3080.0,3079.4,0.7886]
[1731717148298,3.24692,3079.9,3079.5,0.48710325]
[1731717148498,3.24692,3079.9,3079.5,0.5520421]
[1731717148895,3.24673,3080.1,3079.5,0.5520421]
[1731717149100,3.24695,3079.9,3079.5,0.5520421]
[1731717149399,6.49389,3079.9,3079.5,0.06493885]
[1731717149702,3.24694,3079.9,3079.5,0.06493885]
[1731717153365,3.24633,3080.4,3079.8,0.7886]
[1731717153366,3.24652,3080.3,3079.8,0.7886]
[1731717153868,0.04250927,3080.3,3079.9,0.06493048]
[1731717154069,0.04250927,3080.3,3080.0,0.41004705]
[1731717154671,3.24633,3080.5,3080.0,3.65677705]
[1731717154836,0.04250927,3080.3,3080.0,3.65677705]
[1731717155027,3.24633,3080.5,3080.0,3.65677705]
[1731717155028,0.04262338,3080.4,3080.0,3.65677705]
[1731717155345,0.04250927,3080.3,3080.1,0.37217075]
[1731717155851,3.24623,3080.5,3080.2,0.7886]
[1731717156054,0.04253492,3080.3,3080.2,0.7886]
[1731717156256,3.24614,3080.6,3080.2,0.7886]
[1731717156457,0.04253492,3080.3,3080.2,0.7886]
[1731717156666,3.24592,3080.8,3080.3,0.7886]
[1731717156835,3.24592,3080.8,3080.3,4.03502]
[1731717157341,3.2457,3081.0,3080.3,4.03494]
[1731717157552,3.2457,3081.0,3080.4,3.70442213]
[1731717158277,3.2458,3080.9,3080.4,3.70442213]
[1731717158475,3.2458,3080.9,3080.4,0.45816213]
[1731717158870,3.24565,3081.1,3080.6,0.7886]
[1731717159356,3.2457,3081.0,3080.6,0.7886]
[1731717160248,3.2457,3081.0,3080.6,1.19857706]
[1731717160449,3.24553,3081.2,3080.6,4.44465706]
[1731717160900,3.24553,3081.2,3080.7,3.24601]
[1731717161600,0.1420377,3081.4,3080.9,3.24572]
[1731717161804,0.1420377,3081.4,3081.0,0.403432]
[1731717162012,0.1420377,3081.4,3081.1,3.24553]
[1731717162295,0.1420377,3081.4,3081.2,0.7886]
[1731717163419,3.3873777,3081.4,3081.2,0.7886]
[1731717163823,3.3873777,3081.4,3080.8,3.24586]
[1731717163824,3.24538,3081.3,3080.8,0.825]
[1731717164026,3.2458,3080.9,3080.6,0.40997706]
[1731717164327,0.1116,3081.3,3080.2,0.825]
[1731717164328,3.24643,3080.4,3080.2,0.825]
[1731717164476,3.24643,3080.3,3080.2,0.825]
[1731717164673,3.24667,3080.1,3079.8,0.825]
[1731717164878,3.24667,3080.1,3079.4,3.24738]
[1731717165072,3.24664,3080.1,3079.5,3.24725]
[1731717165333,6.49296,3080.3,3079.6,3.24711]
[1731717165491,3.24643,3080.3,3079.8,0.825]
[1731717165696,3.24685,3079.9,3079.3,4.07248]
[1731717165897,3.24685,3079.9,3079.4,0.732005]
[1731717166099,3.24717,3079.6,3079.4,0.732005]
[1731717166299,3.24728,3079.5,3079.3,0.825]
[1731717166893,3.24717,3079.6,3079.3,0.825]
[1731717168211,3.24708,3079.7,3079.3,0.825]
[1731717168457,6.55173788,3080.5,3079.3,0.825]
[1731717168458,3.24662,3080.2,3079.3,4.07246]
[1731717168656,3.24682,3080.0,3079.4,3.654616]
[1731717168862,3.1116,3080.5,3079.4,0.407246]
[1731717169077,3.24746,3079.4,3078.8,0.825]
[1731717169241,3.24746,3079.4,3078.8,3.825]
[1731717169574,3.24766,3079.2,3078.9,0.707307]
[1731717169775,3.24766,3079.2,3078.8,0.825]
[1731717170081,3.3586,3079.8,3078.9,0.06495045]
[1731717170082,0.1116,3079.8,3078.9,0.06495045]
[1731717170241,0.1116,3079.8,3078.9,3.31280045]
[1731717170242,6.49467,3079.5,3078.9,3.31280045]
[1731717170427,6.49423,3079.7,3079.0,3.66158005]
[1731717170834,3.24717,3079.6,3079.0,3.66158005]
[1731717171266,3.24672,3080.1,3079.1,0.825]
[1731717171477,3.24653,3080.3,3079.5,0.825]
[1731717171770,3.24653,3080.3,3079.7,3.24698]
[1731717171938,3.24653,3080.3,3079.8,0.06493151]
[1731717173085,3.24656,3080.2,3079.8,0.06493151]
[1731717173685,3.24665,3080.1,3079.8,0.06493151]
[1731717173891,3.24665,3080.1,3079.6,3.24716]
[1731717173892,3.24665,3080.1,3079.7,0.06493286]
[1731717174096,3.24653,3080.3,3079.8,0.33120929]
[1731717176168,3.24655,3080.2,3079.8,0.33120929]
[1731717176371,3.24653,3080.3,3079.8,0.33120929]
[1731717176704,3.24717,3079.6,3079.2,0.825]
[1731717177203,3.24696,3079.8,3079.2,0.825]
[1731717177569,3.24659,3080.2,3079.6,3.24717]
[1731717177774,3.24659,3080.2,3079.8,0.7733]
[1731717180027,3.2468,3080.0,3079.8,0.7733]
[1731717180718,3.24659,3080.2,3079.8,0.7733]
[1731717181067,3.24677,3080.0,3079.8,0.7733]
[1731717181266,3.24659,3080.2,3079.8,0.7733]
[1731717181513,3.24659,3080.2,3079.8,1.24026676]
[1731717181993,3.24634,3080.4,3079.8,1.24026676]
[1731717182195,3.24616,3080.6,3079.8,4.48720676]
[1731717182394,3.24649,3080.3,3079.8,0.83823276]
[1731717182582,3.24542227,3080.3,3079.8,1.24676165]
[1731717182787,3.24542227,3080.3,3079.8,4.49371165]
[1731717183529,3.24624,3080.5,3080.0,3.24672]
[1731717183732,3.24624,3080.5,3080.0,3.31164685]
[1731717183932,3.24624,3080.5,3080.0,0.06492685]
[1731717184145,3.24624,3080.5,3080.0,0.51429786]
[1731717184305,6.49214,3080.7,3080.1,3.24664]
[1731717184512,3.24586,3080.9,3080.3,0.7788]
[1731717184717,3.0,3081.0,3080.4,3.31118085]
[1731717185035,3.24592,3080.8,3080.3,0.7788]
[1731717185194,3.0,3081.0,3080.4,0.44014138]
[1731717185395,3.24542,3081.3,3080.8,0.7788]
[1731717186043,0.1420377,3081.4,3080.9,0.06491171]
[1731717186343,0.1420377,3081.4,3080.9,3.31065171]
[1731717186504,0.1420377,3081.4,3081.1,3.24558]
[1731717186708,0.1420377,3081.4,3081.0,4.02439]
[1731717186709,0.1420377,3081.4,3081.2,3.24548]
[1731717187934,0.1420377,3081.4,3081.0,4.02439]
[1731717188136,0.1420377,3081.4,3081.0,0.7788]
[1731717188432,0.1420377,3081.4,3081.0,4.02443]
[1731717188634,0.1420377,3081.4,3081.1,0.402443]
[1731717189041,0.1420377,3081.4,3081.1,3.647933]
[1731717189244,0.1420377,3081.4,3081.2,3.24547]
[1731717189399,0.1420377,3081.4,3081.3,3.24538]
[1731717189745,0.1420377,3081.4,3081.3,4.02418]
[1731717189926,0.1420377,3081.4,3081.3,4.7913893]
[1731717190246,0.1420377,3081.4,3081.3,1.5460093]
[1731717190424,0.1420377,3081.4,3081.3,4.7913893]
[1731717192848,0.1420377,3081.4,3081.3,1.5460093]
[1731717193411,0.1420377,3081.4,3080.9,0.7788]
[1731717193607,0.1420377,3081.4,3080.6,0.7788]
[1731717193608,3.24597,3080.8,3080.6,0.7788]
[1731717193854,3.24556,3081.2,3080.2,0.7788]
[1731717193855,3.24601,3080.7,3080.2,0.7788]
[1731717194021,3.24628,3080.5,3080.3,0.402537]
[1731717194223,3.35721,3081.1,3079.9,0.7788]
[1731717194224,3.24643,3080.3,3079.9,0.7788]
[1731717194557,3.35721,3081.1,3079.9,0.7788]
[1731717194558,3.24634,3080.4,3079.9,0.7788]
[1731717194721,3.24634,3080.4,3080.0,0.06492792]
[1731717195166,3.24634,3080.4,3079.9,4.02563]
[1731717195167,3.24634,3080.4,3079.9,0.7788]
[1731717195531,3.24597,3080.8,3079.6,0.7788]
[1731717195733,3.24641,3080.4,3079.7,3.649604]
[1731717195971,3.24641,3080.4,3079.7,3.71453103]
[1731717196273,3.24641,3080.4,3079.7,6.96150103]
[1731717196444,3.24587,3080.9,3080.0,0.8008]
[1731717196643,3.24587,3080.9,3080.1,0.404761]
[1731717197871,3.24602,3080.7,3080.1,3.651321]
[1731717198233,3.35727,3081.1,3080.1,0.404761]
[1731717198435,3.35727,3081.1,3080.0,0.8008]
[1731717198436,3.24578,3081.0,3080.2,3.31141907]
[1731717198633,3.24612,3080.6,3080.0,4.0475]
[1731717198832,3.24612,3080.6,3080.1,0.70475]
[1731717199038,3.35724,3081.1,3080.1,0.70475]
[1731717199237,6.60292,3081.1,3080.4,3.24625]
[1731717199493,3.24573,3081.0,3080.4,3.24625]
[1731717199674,3.24587,3080.9,3080.3,3.24641]
[1731717199851,3.24587,3080.9,3080.2,3.24646]
[1731717199852,3.24587,3080.9,3080.2,3.65767791]
[1731717200058,3.24601,3080.7,3080.2,3.65767791]
[1731717200254,3.24587,3080.9,3080.2,3.65767791]
[1731717200480,3.24592,3080.8,3080.3,0.36576779]
[1731717202397,3.24618,3080.6,3080.2,0.41121791]
[1731717202597,3.24676,3080.0,3079.6,0.8008]
[1731717202889,3.24676,3080.0,3079.3,4.04827]
[1731717202890,3.24705,3079.8,3079.3,4.04827]
[1731717203051,3.24691,3079.9,3079.3,4.43838539]
[1731717203253,3.24691,3079.9,3079.4,0.76859554]